[Event "Titled Tuesday Blitz June 27 Early 2023"]
[White "Ibarra Jerez, Jose Carlos"]
[Black "Hakobyan, Aram"]
[WhiteFideId "2226332"]
[BlackFideId "13306677"]
[WhiteElo "2891"]
[BlackElo "2997"]
[Result "0-1"]
[Round "5"]
[TimeControl "180+2"]
[Date "2023.06.27"]
[WhiteClock "0:00:00"]
[BlackClock "0:00:03"]
[Board "5"]

1. e4 {[%clk 0:03:00]}  c5 {[%clk 0:03:00]} 2. Nf3 {[%clk 0:02:57]}  d6 {[%clk 0:03:01]} 3. c3 {[%clk 0:02:57]}  Nf6 {[%clk 0:03:01]} 4. h3 {[%clk 0:02:57]}  Bd7 {[%clk 0:03:01]} 5. Bd3 {[%clk 0:02:56]}  g6 {[%clk 0:02:56]} 6. Bc2 {[%clk 0:02:56]}  Bc6 {[%clk 0:02:54]} 7. Qe2 {[%clk 0:02:55]}  Bg7 {[%clk 0:02:49]} 8. O-O {[%clk 0:02:55]}  O-O {[%clk 0:02:49]} 9. d4 {[%clk 0:02:55]}  cxd4 {[%clk 0:02:39]} 10. cxd4 {[%clk 0:02:56]}  d5 {[%clk 0:02:36]} 11. e5 {[%clk 0:02:56]}  Ne4 {[%clk 0:02:36]} 12. Nbd2 {[%clk 0:02:54]}  Nxd2 {[%clk 0:02:18]} 13. Bxd2 {[%clk 0:02:55]}  Qd7 {[%clk 0:02:09]} 14. Rfe1 {[%clk 0:02:53]}  Na6 {[%clk 0:02:05]} 15. Qe3 {[%clk 0:02:43]}  Nc7 {[%clk 0:02:00]} 16. Qf4 {[%clk 0:02:41]}  Ne6 {[%clk 0:01:50]} 17. Qh4 {[%clk 0:02:41]}  f5 {[%clk 0:01:51]} 18. Ng5 {[%clk 0:02:33]}  Nxg5 {[%clk 0:01:50]} 19. Bxg5 {[%clk 0:02:33]}  e6 {[%clk 0:01:41]} 20. Rac1 {[%clk 0:02:31]}  Rac8 {[%clk 0:01:40]} 21. Bh6 {[%clk 0:02:19]}  Bxh6 {[%clk 0:01:37]} 22. Qxh6 {[%clk 0:02:19]}  Qg7 {[%clk 0:01:37]} 23. Qxg7+ {[%clk 0:02:12]}  Kxg7 {[%clk 0:01:38]} 24. Bd3 {[%clk 0:02:12]}  Bd7 {[%clk 0:01:27]} 25. f4 {[%clk 0:02:11]}  h6 {[%clk 0:01:17]} 26. h4 {[%clk 0:02:08]}  h5 {[%clk 0:01:13]} 27. Kf2 {[%clk 0:02:07]}  Rxc1 {[%clk 0:01:11]} 28. Rxc1 {[%clk 0:02:08]}  Rc8 {[%clk 0:01:11]} 29. Ra1 {[%clk 0:02:07]}  a6 {[%clk 0:01:08]} 30. Ke3 {[%clk 0:01:59]}  Kf7 {[%clk 0:01:03]} 31. Kd2 {[%clk 0:01:59]}  Ke7 {[%clk 0:01:03]} 32. Rh1 {[%clk 0:01:56]}  a5 {[%clk 0:00:57]} 33. Rh3 {[%clk 0:01:55]}  Rc7 {[%clk 0:00:47]} 34. Rg3 {[%clk 0:01:55]}  Be8 {[%clk 0:00:47]} 35. Be2 {[%clk 0:01:54]}  b5 {[%clk 0:00:23]} 36. a3 {[%clk 0:01:49]}  Kd8 {[%clk 0:00:19]} 37. Rb3 {[%clk 0:01:48]}  Rb7 {[%clk 0:00:11]} 38. Rc3 {[%clk 0:01:47]}  b4 {[%clk 0:00:06]} 39. Re3 {[%clk 0:01:21]}  Ba4 {[%clk 0:00:05]} 40. Ke1 {[%clk 0:00:14]}  Bd7 {[%clk 0:00:02]} 41. Bd1 {[%clk 0:00:10]}  bxa3 {[%clk 0:00:03]} 42. bxa3 {[%clk 0:00:11]}  Rb1 {[%clk 0:00:03]} 43. Kd2 {[%clk 0:00:10]}  Rb2+ {[%clk 0:00:03]} 44. Bc2 {[%clk 0:00:10]}  Ba4 {[%clk 0:00:04]} 45. Rc3 {[%clk 0:00:10]}  Ra2 {[%clk 0:00:04]} 46. Kc1 {[%clk 0:00:07]}  Bxc2 {[%clk 0:00:04]} 47. Rxc2 {[%clk 0:00:08]}  Rxa3 {[%clk 0:00:05]} 48. Rc6 {[%clk 0:00:07]}  Kd7 {[%clk 0:00:05]} 49. Rd6+ {[%clk 0:00:05]}  Ke7 {[%clk 0:00:06]} 50. Ra6 {[%clk 0:00:05]}  Ra4 {[%clk 0:00:06]} 51. Ra7+ {[%clk 0:00:06]}  Kf8 {[%clk 0:00:06]} 52. Ra8+ {[%clk 0:00:05]}  Ke7 {[%clk 0:00:07]} 53. Ra7+ {[%clk 0:00:06]}  Ke8 {[%clk 0:00:07]} 54. Ra8+ {[%clk 0:00:06]}  Kd7 {[%clk 0:00:08]} 55. Ra7+ {[%clk 0:00:07]}  Kd8 {[%clk 0:00:08]} 56. Ra8+ {[%clk 0:00:07]}  Kc7 {[%clk 0:00:08]} 57. Ra7+ {[%clk 0:00:08]}  Kb6 {[%clk 0:00:05]} 58. Re7 {[%clk 0:00:08]}  Rxd4 {[%clk 0:00:05]} 59. Rxe6+ {[%clk 0:00:09]}  Kc5 {[%clk 0:00:06]} 60. g3 {[%clk 0:00:08]}  a4 {[%clk 0:00:06]} 61. Rxg6 {[%clk 0:00:08]}  Rc4+ {[%clk 0:00:06]} 62. Kb2 {[%clk 0:00:08]}  d4 {[%clk 0:00:04]} 63. Rd6 {[%clk 0:00:09]}  Rc3 {[%clk 0:00:02]} 64. Rd8 {[%clk 0:00:05]}  Rxg3 {[%clk 0:00:03]} 65. e6 {[%clk 0:00:03]}  Re3 {[%clk 0:00:03]} 66. Re8 {[%clk 0:00:02]}  Kd5 {[%clk 0:00:03]} 67. Rh8 {[%clk 0:00:01]}  Rxe6 {[%clk 0:00:03]} 68. Rxh5 {[%clk 0:00:02]}  Ke4 {[%clk 0:00:03]} 69. Rh6 {[%clk 0:00:00]}  Rxh6 {[%clk 0:00:03]} 0-1


[Site "https://www.chess.com"]

[Event "Titled Tuesday Blitz June 27 Early 2023"]
[White "Andreikin, Dmitry"]
[Black "Erdogmus, Yagiz Kaan"]
[WhiteFideId "4158814"]
[BlackFideId "44599790"]
[WhiteElo "2995"]
[BlackElo "2858"]
[Result "1-0"]
[Round "5"]
[TimeControl "180+2"]
[Date "2023.06.27"]
[WhiteClock "0:01:08"]
[BlackClock "0:00:04"]
[Board "6"]

1. e4 {[%clk 0:03:00]}  c5 {[%clk 0:02:59]} 2. Nc3 {[%clk 0:02:59]}  e6 {[%clk 0:02:58]} 3. Nge2 {[%clk 0:02:59]}  Nc6 {[%clk 0:02:52]} 4. g3 {[%clk 0:02:56]}  d5 {[%clk 0:02:50]} 5. exd5 {[%clk 0:02:56]}  exd5 {[%clk 0:02:51]} 6. d4 {[%clk 0:02:56]}  Nf6 {[%clk 0:02:48]} 7. Bg2 {[%clk 0:02:56]}  cxd4 {[%clk 0:02:48]} 8. Nxd4 {[%clk 0:02:55]}  Bg4 {[%clk 0:02:48]} 9. Qd3 {[%clk 0:02:54]}  Bc5 {[%clk 0:02:17]} 10. Be3 {[%clk 0:02:54]}  Qb6 {[%clk 0:01:58]} 11. h3 {[%clk 0:02:13]}  Bxd4 {[%clk 0:01:25]} 12. Bxd4 {[%clk 0:02:12]}  Qxd4 {[%clk 0:00:43]} 13. hxg4 {[%clk 0:02:12]}  Qxd3 {[%clk 0:00:39]} 14. cxd3 {[%clk 0:02:13]}  Nxg4 {[%clk 0:00:38]} 15. Nxd5 {[%clk 0:02:12]}  O-O-O {[%clk 0:00:37]} 16. Rc1 {[%clk 0:02:03]}  Kb8 {[%clk 0:00:36]} 17. O-O {[%clk 0:02:00]}  h5 {[%clk 0:00:36]} 18. Rfe1 {[%clk 0:01:50]}  h4 {[%clk 0:00:31]} 19. Ne7 {[%clk 0:01:30]}  Nd4 {[%clk 0:00:27]} 20. gxh4 {[%clk 0:01:26]}  Rxh4 {[%clk 0:00:18]} 21. Re4 {[%clk 0:01:25]}  Nf6 {[%clk 0:00:16]} 22. Re5 {[%clk 0:01:11]}  Rg4 {[%clk 0:00:13]} 23. Kf1 {[%clk 0:01:11]}  Ne6 {[%clk 0:00:10]} 24. Rb5 {[%clk 0:01:08]}  Rxg2 {[%clk 0:00:07]} 25. Nc6+ {[%clk 0:01:07]}  Ka8 {[%clk 0:00:04]} 26. Nxd8 {[%clk 0:01:08]} 1-0


[Site "https://www.chess.com"]

[Event "Titled Tuesday Blitz June 27 Early 2023"]
[White "Kravtsiv, Martyn"]
[Black "Van Foreest, Jorden"]
[WhiteFideId "14113147"]
[BlackFideId "1039784"]
[WhiteElo "2841"]
[BlackElo "2982"]
[Result "1/2-1/2"]
[Round "5"]
[TimeControl "180+2"]
[Date "2023.06.27"]
[WhiteClock "0:00:31"]
[BlackClock "0:00:35"]
[Board "7"]

1. e4 {[%clk 0:03:00]}  c6 {[%clk 0:02:57]} 2. Nf3 {[%clk 0:03:01]}  d5 {[%clk 0:02:57]} 3. d3 {[%clk 0:03:01]}  dxe4 {[%clk 0:02:55]} 4. dxe4 {[%clk 0:03:02]}  Qxd1+ {[%clk 0:02:55]} 5. Kxd1 {[%clk 0:03:03]}  Nf6 {[%clk 0:02:55]} 6. Nbd2 {[%clk 0:03:02]}  g6 {[%clk 0:02:55]} 7. Ne5 {[%clk 0:03:02]}  Bg7 {[%clk 0:02:55]} 8. Nd3 {[%clk 0:02:51]}  O-O {[%clk 0:02:54]} 9. c3 {[%clk 0:02:51]}  b6 {[%clk 0:02:53]} 10. f3 {[%clk 0:02:50]}  c5 {[%clk 0:02:53]} 11. Kc2 {[%clk 0:02:49]}  Nc6 {[%clk 0:02:52]} 12. b3 {[%clk 0:02:48]}  Ne8 {[%clk 0:02:50]} 13. Bb2 {[%clk 0:02:48]}  Nd6 {[%clk 0:02:50]} 14. Nf4 {[%clk 0:02:43]}  f5 {[%clk 0:02:47]} 15. exf5 {[%clk 0:02:33]}  Bxf5+ {[%clk 0:02:48]} 16. Bd3 {[%clk 0:02:32]}  c4 {[%clk 0:02:34]} 17. Nxc4 {[%clk 0:02:28]}  Nxc4 {[%clk 0:02:34]} 18. bxc4 {[%clk 0:02:29]}  Rac8 {[%clk 0:02:16]} 19. Rae1 {[%clk 0:02:21]}  Bd7 {[%clk 0:02:11]} 20. Ne6 {[%clk 0:02:13]}  Bxe6 {[%clk 0:01:52]} 21. Rxe6 {[%clk 0:02:13]}  Bf6 {[%clk 0:01:52]} 22. c5 {[%clk 0:01:55]}  Nd8 {[%clk 0:01:50]} 23. Re4 {[%clk 0:01:51]}  Rxc5 {[%clk 0:01:49]} 24. Rd1 {[%clk 0:01:50]}  Nb7 {[%clk 0:01:43]} 25. Rc4 {[%clk 0:01:42]}  Rfc8 {[%clk 0:01:43]} 26. Rxc5 {[%clk 0:01:31]}  Rxc5 {[%clk 0:01:30]} 27. Be4 {[%clk 0:00:59]}  Nd6 {[%clk 0:01:30]} 28. Bd5+ {[%clk 0:01:00]}  Kf8 {[%clk 0:01:30]} 29. Rd3 {[%clk 0:01:00]}  Nb5 {[%clk 0:01:31]} 30. Bb3 {[%clk 0:00:52]}  h5 {[%clk 0:01:22]} 31. Ba4 {[%clk 0:00:48]}  Nd6 {[%clk 0:01:19]} 32. Ba3 {[%clk 0:00:48]}  Ra5 {[%clk 0:01:08]} 33. Bxd6 {[%clk 0:00:44]}  exd6 {[%clk 0:00:56]} 34. Bb3 {[%clk 0:00:43]}  Ke7 {[%clk 0:00:53]} 35. Rd5 {[%clk 0:00:41]}  Rc5 {[%clk 0:00:50]} 36. Rxc5 {[%clk 0:00:41]}  dxc5 {[%clk 0:00:49]} 37. a4 {[%clk 0:00:38]}  g5 {[%clk 0:00:48]} 38. Kd3 {[%clk 0:00:37]}  Be5 {[%clk 0:00:48]} 39. g3 {[%clk 0:00:35]}  Kf6 {[%clk 0:00:46]} 40. Bd5 {[%clk 0:00:34]}  Bd6 {[%clk 0:00:43]} 41. Ke4 {[%clk 0:00:33]}  a6 {[%clk 0:00:39]} 42. c4 {[%clk 0:00:33]}  a5 {[%clk 0:00:38]} 43. Bb7 {[%clk 0:00:31]}  h4 {[%clk 0:00:38]} 44. f4 {[%clk 0:00:31]}  hxg3 {[%clk 0:00:38]} 45. hxg3 {[%clk 0:00:31]}  gxf4 {[%clk 0:00:38]} 46. gxf4 {[%clk 0:00:31]}  Bc7 {[%clk 0:00:39]} 47. f5 {[%clk 0:00:31]}  Bg3 {[%clk 0:00:35]} 48. Bd5 {[%clk 0:00:31]} 1/2-1/2


[Site "https://www.chess.com"]

[Event "Titled Tuesday Blitz June 27 Early 2023"]
[White "Preotu, Razvan"]
[Black "Durarbayli, Vasif"]
[WhiteFideId "2613280"]
[BlackFideId "13402935"]
[WhiteElo "2726"]
[BlackElo "2921"]
[Result "0-1"]
[Round "5"]
[TimeControl "180+2"]
[Date "2023.06.27"]
[WhiteClock "0:00:00"]
[BlackClock "0:00:12"]
[Board "10"]

1. e4 {[%clk 0:03:00]}  e5 {[%clk 0:03:00]} 2. Nf3 {[%clk 0:03:00]}  Nc6 {[%clk 0:03:01]} 3. Bc4 {[%clk 0:03:00]}  Nf6 {[%clk 0:03:00]} 4. d3 {[%clk 0:03:01]}  Bc5 {[%clk 0:03:01]} 5. O-O {[%clk 0:03:01]}  O-O {[%clk 0:03:00]} 6. c3 {[%clk 0:03:01]}  d6 {[%clk 0:03:00]} 7. Re1 {[%clk 0:03:01]}  a6 {[%clk 0:02:58]} 8. a4 {[%clk 0:03:00]}  h6 {[%clk 0:02:55]} 9. h3 {[%clk 0:03:00]}  Re8 {[%clk 0:02:53]} 10. b4 {[%clk 0:03:00]}  Ba7 {[%clk 0:02:53]} 11. Nbd2 {[%clk 0:03:00]}  Ne7 {[%clk 0:02:53]} 12. d4 {[%clk 0:02:38]}  exd4 {[%clk 0:02:46]} 13. cxd4 {[%clk 0:02:37]}  d5 {[%clk 0:02:46]} 14. e5 {[%clk 0:02:32]}  dxc4 {[%clk 0:02:05]} 15. exf6 {[%clk 0:02:32]}  Nd5 {[%clk 0:02:00]} 16. fxg7 {[%clk 0:02:19]}  c3 {[%clk 0:01:57]} 17. Ne4 {[%clk 0:02:03]}  Bf5 {[%clk 0:01:53]} 18. Ng3 {[%clk 0:02:00]}  Rxe1+ {[%clk 0:01:24]} 19. Qxe1 {[%clk 0:02:01]}  Bh7 {[%clk 0:00:55]} 20. Bxh6 {[%clk 0:02:02]}  Qd6 {[%clk 0:00:53]} 21. Bg5 {[%clk 0:01:39]}  c2 {[%clk 0:00:35]} 22. Rc1 {[%clk 0:01:15]}  Qxb4 {[%clk 0:00:33]} 23. Qe5 {[%clk 0:00:42]}  Qd6 {[%clk 0:00:33]} 24. Nh5 {[%clk 0:00:37]}  Qxe5 {[%clk 0:00:24]} 25. dxe5 {[%clk 0:00:38]}  b5 {[%clk 0:00:24]} 26. Nh2 {[%clk 0:00:16]}  Bg6 {[%clk 0:00:19]} 27. Nf6+ {[%clk 0:00:14]}  Nxf6 {[%clk 0:00:19]} 28. Bxf6 {[%clk 0:00:14]}  b4 {[%clk 0:00:18]} 29. Ng4 {[%clk 0:00:09]}  Bd4 {[%clk 0:00:12]} 30. Nh6+ {[%clk 0:00:01]}  Kh7 {[%clk 0:00:12]} 31. g8=Q+ {[%clk 0:00:02]}  Rxg8 {[%clk 0:00:11]} 32. Nxg8 {[%clk 0:00:00]}  Kxg8 {[%clk 0:00:12]} 0-1


[Site "https://www.chess.com"]

[Event "Titled Tuesday Blitz June 27 Early 2023"]
[White "Bachmann, Axel"]
[Black "Theodorou, Nikolas"]
[WhiteFideId "3700488"]
[BlackFideId "4262875"]
[WhiteElo "2803"]
[BlackElo "3015"]
[Result "1/2-1/2"]
[Round "5"]
[TimeControl "180+2"]
[Date "2023.06.27"]
[WhiteClock "0:00:04"]
[BlackClock "0:00:02"]
[Board "14"]

1. e4 {[%clk 0:02:59]}  e5 {[%clk 0:03:00]} 2. Bc4 {[%clk 0:02:57]}  Nf6 {[%clk 0:02:58]} 3. d3 {[%clk 0:02:35]}  Bc5 {[%clk 0:02:57]} 4. Nc3 {[%clk 0:02:35]}  d6 {[%clk 0:02:56]} 5. Na4 {[%clk 0:02:26]}  Bb6 {[%clk 0:02:41]} 6. Nxb6 {[%clk 0:02:26]}  axb6 {[%clk 0:02:42]} 7. Ne2 {[%clk 0:02:13]}  Be6 {[%clk 0:02:38]} 8. Bxe6 {[%clk 0:02:12]}  fxe6 {[%clk 0:02:39]} 9. O-O {[%clk 0:02:12]}  O-O {[%clk 0:02:39]} 10. f4 {[%clk 0:02:12]}  Nc6 {[%clk 0:02:36]} 11. fxe5 {[%clk 0:02:06]}  dxe5 {[%clk 0:02:37]} 12. h3 {[%clk 0:02:01]}  Qd6 {[%clk 0:02:36]} 13. Be3 {[%clk 0:02:00]}  b5 {[%clk 0:02:34]} 14. a3 {[%clk 0:01:31]}  Nd7 {[%clk 0:02:25]} 15. Nc3 {[%clk 0:01:26]}  Nd4 {[%clk 0:02:23]} 16. Qd2 {[%clk 0:01:19]}  c6 {[%clk 0:02:18]} 17. Ne2 {[%clk 0:01:15]}  c5 {[%clk 0:02:14]} 18. Rxf8+ {[%clk 0:01:09]}  Rxf8 {[%clk 0:02:05]} 19. Rf1 {[%clk 0:01:10]}  Ra8 {[%clk 0:01:33]} 20. Kh1 {[%clk 0:00:53]}  Rf8 {[%clk 0:01:27]} 21. Rxf8+ {[%clk 0:00:49]}  Qxf8 {[%clk 0:01:28]} 22. Kg1 {[%clk 0:00:46]}  b6 {[%clk 0:01:04]} 23. Nc3 {[%clk 0:00:35]}  b4 {[%clk 0:01:00]} 24. axb4 {[%clk 0:00:36]}  cxb4 {[%clk 0:01:01]} 25. Na2 {[%clk 0:00:22]}  b3 {[%clk 0:00:57]} 26. cxb3 {[%clk 0:00:23]}  Nxb3 {[%clk 0:00:49]} 27. Qc3 {[%clk 0:00:23]}  Ndc5 {[%clk 0:00:18]} 28. Qxe5 {[%clk 0:00:13]}  Qa8 {[%clk 0:00:07]} 29. Nb4 {[%clk 0:00:12]}  Qa4 {[%clk 0:00:03]} 30. Bd4 {[%clk 0:00:02]}  Qd7 {[%clk 0:00:01]} 31. Bc3 {[%clk 0:00:01]}  h6 {[%clk 0:00:01]} 32. Kh2 {[%clk 0:00:02]}  Kh7 {[%clk 0:00:01]} 33. Kh1 {[%clk 0:00:02]}  Na4 {[%clk 0:00:01]} 34. d4 {[%clk 0:00:01]}  Nxc3 {[%clk 0:00:01]} 35. bxc3 {[%clk 0:00:02]}  Nd2 {[%clk 0:00:02]} 36. d5 {[%clk 0:00:02]}  Qb5 {[%clk 0:00:02]} 37. Qf4 {[%clk 0:00:02]}  Qe2 {[%clk 0:00:02]} 38. dxe6 {[%clk 0:00:02]}  Qe1+ {[%clk 0:00:02]} 39. Kh2 {[%clk 0:00:02]}  Nf1+ {[%clk 0:00:03]} 40. Kg1 {[%clk 0:00:03]}  Ne3+ {[%clk 0:00:02]} 41. Kh2 {[%clk 0:00:03]}  Nf1+ {[%clk 0:00:03]} 42. Kg1 {[%clk 0:00:03]}  Ng3+ {[%clk 0:00:03]} 43. Kh2 {[%clk 0:00:04]}  Nf1+ {[%clk 0:00:02]} 1/2-1/2


[Site "https://www.chess.com"]

[Event "Titled Tuesday Blitz June 27 Early 2023"]
[White "Mardov, Dimitar"]
[Black "Tabatabaei, M. Amin"]
[WhiteFideId "30919495"]
[BlackFideId "12521213"]
[WhiteElo "2846"]
[BlackElo "2995"]
[Result "1/2-1/2"]
[Round "5"]
[TimeControl "180+2"]
[Date "2023.06.27"]
[WhiteClock "0:00:15"]
[BlackClock "0:00:14"]
[Board "15"]

1. d4 {[%clk 0:03:00]}  Nf6 {[%clk 0:02:59]} 2. c4 {[%clk 0:03:01]}  g6 {[%clk 0:03:00]} 3. Nc3 {[%clk 0:03:00]}  d5 {[%clk 0:03:01]} 4. cxd5 {[%clk 0:02:54]}  Nxd5 {[%clk 0:03:02]} 5. e4 {[%clk 0:02:54]}  Nxc3 {[%clk 0:03:02]} 6. bxc3 {[%clk 0:02:55]}  Bg7 {[%clk 0:03:03]} 7. Nf3 {[%clk 0:02:54]}  c5 {[%clk 0:03:04]} 8. h3 {[%clk 0:02:54]}  O-O {[%clk 0:03:01]} 9. Be2 {[%clk 0:02:42]}  b6 {[%clk 0:03:01]} 10. Be3 {[%clk 0:02:40]}  Bb7 {[%clk 0:03:00]} 11. Qd3 {[%clk 0:02:41]}  e6 {[%clk 0:02:44]} 12. O-O {[%clk 0:02:40]}  Nd7 {[%clk 0:02:44]} 13. d5 {[%clk 0:02:31]}  c4 {[%clk 0:02:28]} 14. Qd2 {[%clk 0:02:21]}  exd5 {[%clk 0:02:20]} 15. exd5 {[%clk 0:02:22]}  Nf6 {[%clk 0:02:20]} 16. Bxc4 {[%clk 0:02:15]}  Rc8 {[%clk 0:02:07]} 17. Bb3 {[%clk 0:02:04]}  Ne4 {[%clk 0:01:30]} 18. Qd3 {[%clk 0:01:53]}  Nxc3 {[%clk 0:01:30]} 19. Rac1 {[%clk 0:01:09]}  Qd7 {[%clk 0:01:06]} 20. Bd4 {[%clk 0:00:33]}  Bxd4 {[%clk 0:00:57]} 21. Nxd4 {[%clk 0:00:33]}  Nxd5 {[%clk 0:00:58]} 22. Rcd1 {[%clk 0:00:33]}  Nf4 {[%clk 0:00:57]} 23. Qg3 {[%clk 0:00:28]}  Qc7 {[%clk 0:00:44]} 24. Kh2 {[%clk 0:00:16]}  Nxg2 {[%clk 0:00:32]} 25. Nb5 {[%clk 0:00:10]}  Qxg3+ {[%clk 0:00:10]} 26. Kxg3 {[%clk 0:00:11]}  Rcd8 {[%clk 0:00:11]} 27. Nd6 {[%clk 0:00:10]}  Ba8 {[%clk 0:00:11]} 28. Nxf7 {[%clk 0:00:07]}  Rxd1 {[%clk 0:00:11]} 29. Rxd1 {[%clk 0:00:08]}  Kg7 {[%clk 0:00:11]} 30. Rd7 {[%clk 0:00:08]}  Kf6 {[%clk 0:00:10]} 31. Rxa7 {[%clk 0:00:07]}  g5 {[%clk 0:00:09]} 32. Nh6 {[%clk 0:00:07]}  Nf4 {[%clk 0:00:07]} 33. Ng4+ {[%clk 0:00:07]}  Kf5 {[%clk 0:00:04]} 34. Rxh7 {[%clk 0:00:06]}  Rc8 {[%clk 0:00:02]} 35. Rf7+ {[%clk 0:00:06]}  Ke4 {[%clk 0:00:01]} 36. Re7+ {[%clk 0:00:05]}  Kd4 {[%clk 0:00:02]} 37. Rd7+ {[%clk 0:00:05]}  Kc3 {[%clk 0:00:02]} 38. Ne5 {[%clk 0:00:01]}  Rh8 {[%clk 0:00:01]} 39. Kg4 {[%clk 0:00:02]}  Nxh3 {[%clk 0:00:01]} 40. Rd3+ {[%clk 0:00:01]}  Kb2 {[%clk 0:00:01]} 41. Rxh3 {[%clk 0:00:02]}  Re8 {[%clk 0:00:01]} 42. Nf3 {[%clk 0:00:02]}  Re4+ {[%clk 0:00:01]} 43. Kg3 {[%clk 0:00:03]}  g4 {[%clk 0:00:01]} 44. Rh4 {[%clk 0:00:02]}  gxf3 {[%clk 0:00:02]} 45. Rxe4 {[%clk 0:00:03]}  Bxe4 {[%clk 0:00:03]} 46. Kf4 {[%clk 0:00:03]}  Bb7 {[%clk 0:00:03]} 47. Ke3 {[%clk 0:00:04]}  b5 {[%clk 0:00:03]} 48. Be6 {[%clk 0:00:04]}  b4 {[%clk 0:00:04]} 49. Bf7 {[%clk 0:00:04]}  Ka3 {[%clk 0:00:04]} 50. Kd2 {[%clk 0:00:04]}  Ba6 {[%clk 0:00:04]} 51. Kc2 {[%clk 0:00:04]}  Bc8 {[%clk 0:00:04]} 52. Kb1 {[%clk 0:00:04]}  Bf5+ {[%clk 0:00:04]} 53. Kc1 {[%clk 0:00:04]}  Bd3 {[%clk 0:00:04]} 54. Bb3 {[%clk 0:00:04]}  Be4 {[%clk 0:00:04]} 55. Bc4 {[%clk 0:00:04]}  Bh7 {[%clk 0:00:05]} 56. Bb3 {[%clk 0:00:04]}  Bf5 {[%clk 0:00:05]} 57. Bd5 {[%clk 0:00:05]}  Bd7 {[%clk 0:00:05]} 58. Bxf3 {[%clk 0:00:04]}  Kxa2 {[%clk 0:00:06]} 59. Bd5+ {[%clk 0:00:04]}  Ka1 {[%clk 0:00:06]} 60. Bb3 {[%clk 0:00:04]}  Bf5 {[%clk 0:00:06]} 61. f4 {[%clk 0:00:05]}  Be4 {[%clk 0:00:06]} 62. Bc4 {[%clk 0:00:05]}  Bg6 {[%clk 0:00:06]} 63. Bb3 {[%clk 0:00:05]}  Bf5 {[%clk 0:00:06]} 64. Bc4 {[%clk 0:00:06]}  Bh7 {[%clk 0:00:07]} 65. Bb3 {[%clk 0:00:06]}  Bd3 {[%clk 0:00:08]} 66. Bd5 {[%clk 0:00:06]}  Bh7 {[%clk 0:00:07]} 67. Bb3 {[%clk 0:00:06]}  Bg6 {[%clk 0:00:08]} 68. Bd5 {[%clk 0:00:06]}  Bf5 {[%clk 0:00:08]} 69. Bb3 {[%clk 0:00:07]}  Be4 {[%clk 0:00:09]} 70. Be6 {[%clk 0:00:07]}  Bb1 {[%clk 0:00:08]} 71. Bb3 {[%clk 0:00:05]}  Ba2 {[%clk 0:00:09]} 72. Bd1 {[%clk 0:00:05]}  Be6 {[%clk 0:00:08]} 73. Bc2 {[%clk 0:00:05]}  Ka2 {[%clk 0:00:08]} 74. f5 {[%clk 0:00:05]}  Bf7 {[%clk 0:00:08]} 75. f6 {[%clk 0:00:05]}  Be6 {[%clk 0:00:08]} 76. Bd1 {[%clk 0:00:05]}  Bd5 {[%clk 0:00:08]} 77. Bc2 {[%clk 0:00:06]}  Bf7 {[%clk 0:00:08]} 78. Bd1 {[%clk 0:00:06]}  Bd5 {[%clk 0:00:07]} 79. Bc2 {[%clk 0:00:07]}  Bg8 {[%clk 0:00:07]} 80. Bd1 {[%clk 0:00:07]}  Bf7 {[%clk 0:00:08]} 81. Bc2 {[%clk 0:00:08]}  Bh5 {[%clk 0:00:08]} 82. Kd2 {[%clk 0:00:06]}  Kb2 {[%clk 0:00:07]} 83. Ba4 {[%clk 0:00:07]}  Bf7 {[%clk 0:00:07]} 84. Bd1 {[%clk 0:00:07]}  Bg6 {[%clk 0:00:07]} 85. Ba4 {[%clk 0:00:07]}  Bh5 {[%clk 0:00:06]} 86. Bc2 {[%clk 0:00:07]}  Be8 {[%clk 0:00:06]} 87. Bd1 {[%clk 0:00:07]}  Ka3 {[%clk 0:00:07]} 88. Bc2 {[%clk 0:00:06]}  Ka2 {[%clk 0:00:06]} 89. Bd1 {[%clk 0:00:07]}  Kb2 {[%clk 0:00:07]} 90. Bc2 {[%clk 0:00:07]}  Bf7 {[%clk 0:00:07]} 91. Ba4 {[%clk 0:00:07]}  Ka3 {[%clk 0:00:07]} 92. Bd1 {[%clk 0:00:07]}  Ka2 {[%clk 0:00:07]} 93. Bc2 {[%clk 0:00:07]}  Kb2 {[%clk 0:00:07]} 94. Ba4 {[%clk 0:00:07]}  Bd5 {[%clk 0:00:07]} 95. Bd1 {[%clk 0:00:07]}  Bc4 {[%clk 0:00:07]} 96. Bc2 {[%clk 0:00:08]}  Ka1 {[%clk 0:00:07]} 97. Ba4 {[%clk 0:00:08]}  Ka2 {[%clk 0:00:07]} 98. Bd1 {[%clk 0:00:08]}  Ka3 {[%clk 0:00:08]} 99. Bc2 {[%clk 0:00:09]}  Bf7 {[%clk 0:00:07]} 100. Bd1 {[%clk 0:00:09]}  Kb2 {[%clk 0:00:08]} 101. Bc2 {[%clk 0:00:09]}  b3 {[%clk 0:00:08]} 102. Bxb3 {[%clk 0:00:10]}  Kxb3 {[%clk 0:00:09]} 103. Ke3 {[%clk 0:00:10]}  Kc4 {[%clk 0:00:09]} 104. Ke4 {[%clk 0:00:11]}  Kc5 {[%clk 0:00:10]} 105. Kf5 {[%clk 0:00:12]}  Kc6 {[%clk 0:00:11]} 106. Kg5 {[%clk 0:00:13]}  Kd6 {[%clk 0:00:12]} 107. Kh6 {[%clk 0:00:13]}  Ke6 {[%clk 0:00:12]} 108. Kg7 {[%clk 0:00:14]}  Bh5 {[%clk 0:00:13]} 109. f7 {[%clk 0:00:15]}  Bxf7 {[%clk 0:00:14]} 1/2-1/2


[Site "https://www.chess.com"]

[Event "Titled Tuesday Blitz June 27 Early 2023"]
[White "Sowul, Bartosz"]
[Black "Shubin, Kirill"]
[WhiteFideId "1137590"]
[BlackFideId "34119962"]
[WhiteElo "2602"]
[BlackElo "2915"]
[Result "0-1"]
[Round "5"]
[TimeControl "180+2"]
[Date "2023.06.27"]
[WhiteClock "0:00:48"]
[BlackClock "0:01:55"]
[Board "16"]

1. e4 {[%clk 0:03:00]}  e6 {[%clk 0:02:59]} 2. d4 {[%clk 0:02:57]}  d5 {[%clk 0:03:00]} 3. Nc3 {[%clk 0:02:57]}  Bb4 {[%clk 0:02:59]} 4. e5 {[%clk 0:02:58]}  b6 {[%clk 0:02:59]} 5. Qg4 {[%clk 0:02:56]}  Bf8 {[%clk 0:02:59]} 6. a4 {[%clk 0:02:49]}  Ba6 {[%clk 0:02:55]} 7. Bxa6 {[%clk 0:02:42]}  Nxa6 {[%clk 0:02:56]} 8. Qe2 {[%clk 0:02:41]}  Nb4 {[%clk 0:02:52]} 9. a5 {[%clk 0:02:41]}  bxa5 {[%clk 0:02:38]} 10. Rxa5 {[%clk 0:02:34]}  c5 {[%clk 0:02:33]} 11. Qb5+ {[%clk 0:02:07]}  Qd7 {[%clk 0:02:32]} 12. Kd1 {[%clk 0:02:05]}  cxd4 {[%clk 0:02:27]} 13. Nce2 {[%clk 0:01:58]}  d3 {[%clk 0:02:20]} 14. Nd4 {[%clk 0:01:25]}  dxc2+ {[%clk 0:02:18]} 15. Nxc2 {[%clk 0:01:26]}  Nxc2 {[%clk 0:02:15]} 16. Kxc2 {[%clk 0:01:25]}  Ne7 {[%clk 0:02:13]} 17. Qxd7+ {[%clk 0:01:21]}  Kxd7 {[%clk 0:02:12]} 18. Be3 {[%clk 0:01:14]}  Nc6 {[%clk 0:02:12]} 19. Ra4 {[%clk 0:01:13]}  Nxe5 {[%clk 0:02:09]} 20. Rxa7+ {[%clk 0:01:07]}  Rxa7 {[%clk 0:02:08]} 21. Bxa7 {[%clk 0:01:08]}  Bd6 {[%clk 0:02:06]} 22. Ne2 {[%clk 0:01:02]}  Rc8+ {[%clk 0:02:04]} 23. Nc3 {[%clk 0:01:02]}  Nc6 {[%clk 0:01:58]} 24. Ra1 {[%clk 0:00:48]}  d4 {[%clk 0:01:55]} 0-1


[Site "https://www.chess.com"]